[Event "*** Titled Tuesday Blitz"]
[Site "Chess.com"]
[Date "2020.04.21"]
[Round "9"]
[White "Tashik"]
[Black "Evgeny81"]
[Result "0-1"]
[WhiteElo "2547"]
[BlackElo "2717"]
[TimeControl "180+1"]
[EndTime "11:49:05 PDT"]
[Termination "Evgeny81 won by resignation"]

1. c4 {[%clk 0:03:00.9]} 1... e5 {[%clk 0:02:56]} 2. Nc3 {[%clk 0:03:00.8]} 2...
f5 {[%clk 0:02:54.3]} 3. g3 {[%clk 0:02:54.2]} 3... Nf6 {[%clk 0:02:54.2]} 4.
Nf3 {[%clk 0:02:53.3]} 4... d6 {[%clk 0:02:53.7]} 5. d4 {[%clk 0:02:52.8]} 5...
e4 {[%clk 0:02:53]} 6. Nh4 {[%clk 0:02:47.6]} 6... Be7 {[%clk 0:02:49.6]} 7. Bg2
{[%clk 0:02:47.1]} 7... O-O {[%clk 0:02:49.1]} 8. O-O {[%clk 0:02:46.5]} 8...
Ne8 {[%clk 0:02:46.4]} 9. f3 {[%clk 0:02:43.6]} 9... Bxh4 {[%clk 0:02:45.6]} 10.
gxh4 {[%clk 0:02:44.5]} 10... exf3 {[%clk 0:02:45]} 11. Rxf3 {[%clk 0:02:27.8]}
11... Qxh4 {[%clk 0:02:37.8]} 12. Bf4 {[%clk 0:02:23.2]} 12... Be6 {[%clk
0:02:28]} 13. Qb3 {[%clk 0:02:00.2]} 13... Nc6 {[%clk 0:02:18.9]} 14. Qxb7
{[%clk 0:01:47.7]} 14... Nxd4 {[%clk 0:01:58.9]} 15. Qxa8 {[%clk 0:01:47.7]}
15... Nf6 {[%clk 0:01:52.3]} 16. Qxf8+ {[%clk 0:01:08.9]} 16... Kxf8 {[%clk
0:01:51.8]} 17. Rff1 {[%clk 0:01:09.1]} 17... Bxc4 {[%clk 0:01:38.7]} 18. Bg3
{[%clk 0:01:09.1]} 18... Qg5 {[%clk 0:01:31.1]} 19. Rf4 {[%clk 0:01:05.3]} 19...
Nxe2+ {[%clk 0:01:21]} 20. Nxe2 {[%clk 0:01:05.2]} 20... Bxe2 {[%clk 0:01:21.9]}
21. Rc1 {[%clk 0:00:53.3]} 21... Nh5 {[%clk 0:01:17.9]} 22. Rfc4 {[%clk
0:00:06.2]} 22... Bxc4 {[%clk 0:00:58.9]} 23. Rxc4 {[%clk 0:00:07.1]} 23... Nxg3
{[%clk 0:00:59]} 24. hxg3 {[%clk 0:00:08]} 24... Qe3+ {[%clk 0:00:57.7]} 25. Kh2
{[%clk 0:00:06.9]} 25... c5 {[%clk 0:00:57.8]} 26. Rf4 {[%clk 0:00:06.3]} 26...
g6 {[%clk 0:00:57.1]} 27. Ra4 {[%clk 0:00:05.8]} 27... Qh6+ {[%clk 0:00:55.5]}
28. Kg1 {[%clk 0:00:05.4]} 28... Qc1+ {[%clk 0:00:55.3]} 29. Kh2 {[%clk
0:00:06]} 29... Qxb2 {[%clk 0:00:53.7]} 30. Rxa7 {[%clk 0:00:06.6]} 30... c4
{[%clk 0:00:52.9]} 31. Kh3 {[%clk 0:00:07.1]} 31... c3 {[%clk 0:00:48.6]} 32.
Bd5 {[%clk 0:00:07.7]} 32... c2 {[%clk 0:00:47.4]} 33. Rf7+ {[%clk 0:00:07.8]}
33... Ke8 {[%clk 0:00:47.6]} 0-1

[Event "*** Titled Tuesday Blitz"]
[Site "Chess.com"]
[Date "2020.04.21"]
[Round "9"]
[White "lifeissofun"]
[Black "HouseOfDurin"]
[Result "1-0"]
[WhiteElo "2279"]
[BlackElo "2094"]
[TimeControl "180+1"]
[EndTime "11:49:05 PDT"]
[Termination "lifeissofun won on time"]

1. e4 {[%clk 0:03:00.9]} 1... c5 {[%clk 0:02:59.7]} 2. Nf3 {[%clk 0:03:01.5]}
2... Nc6 {[%clk 0:03:00]} 3. d4 {[%clk 0:03:02.2]} 3... cxd4 {[%clk 0:03:00.9]}
4. Nxd4 {[%clk 0:03:02.8]} 4... e5 {[%clk 0:03:01.5]} 5. Nb5 {[%clk 0:03:02.8]}
5... d6 {[%clk 0:03:01.7]} 6. N1c3 {[%clk 0:03:02.8]} 6... a6 {[%clk 0:03:02]}
7. Na3 {[%clk 0:03:02.9]} 7... b5 {[%clk 0:03:02.6]} 8. Nd5 {[%clk 0:03:01.5]}
8... Nf6 {[%clk 0:03:03.1]} 9. Bg5 {[%clk 0:03:01.5]} 9... Be7 {[%clk
0:03:03.3]} 10. Bxf6 {[%clk 0:03:02.1]} 10... Bxf6 {[%clk 0:03:04.2]} 11. c4
{[%clk 0:03:02.5]} 11... b4 {[%clk 0:02:52.7]} 12. Nc2 {[%clk 0:03:01.8]} 12...
a5 {[%clk 0:02:49.5]} 13. g3 {[%clk 0:03:02.3]} 13... O-O {[%clk 0:02:46.5]} 14.
Bg2 {[%clk 0:03:02.6]} 14... Bg5 {[%clk 0:02:21.1]} 15. O-O {[%clk 0:03:02.9]}
15... Be6 {[%clk 0:02:20.4]} 16. f4 {[%clk 0:03:01.1]} 16... exf4 {[%clk
0:02:19.8]} 17. gxf4 {[%clk 0:03:01.2]} 17... Bh4 {[%clk 0:02:06.9]} 18. Kh1
{[%clk 0:03:01.1]} 18... Bxd5 {[%clk 0:01:45.6]} 19. Qxd5 {[%clk 0:02:58.7]}
19... Ne7 {[%clk 0:01:33.7]} 20. Qh5 {[%clk 0:02:57.6]} 20... Bf6 {[%clk
0:01:15.6]} 21. e5 {[%clk 0:02:56.4]} 21... dxe5 {[%clk 0:01:07.4]} 22. fxe5
{[%clk 0:02:56.1]} 22... g6 {[%clk 0:01:07.7]} 23. Qe2 {[%clk 0:02:51.8]} 23...
Bg7 {[%clk 0:01:05.5]} 24. Rad1 {[%clk 0:02:50.9]} 24... Qc7 {[%clk 0:00:44.1]}
25. Bxa8 {[%clk 0:02:47.9]} 25... Rxa8 {[%clk 0:00:45]} 26. Qf3 {[%clk
0:02:31.2]} 26... Rf8 {[%clk 0:00:41.6]} 27. b3 {[%clk 0:02:20.6]} 27... Qxe5
{[%clk 0:00:19.9]} 28. Ne3 {[%clk 0:02:12.4]} 28... Qb2 {[%clk 0:00:15.3]} 29.
Rf2 {[%clk 0:02:09.9]} 29... Qc3 {[%clk 0:00:13]} 30. Nd5 {[%clk 0:02:01.4]}
30... Nxd5 {[%clk 0:00:12.1]} 31. Qxd5 {[%clk 0:01:56.2]} 31... h5 {[%clk
0:00:08.1]} 32. Rdf1 {[%clk 0:01:54.7]} 32... Qe5 {[%clk 0:00:02.6]} 33. Qxe5
{[%clk 0:01:38.8]} 33... Bxe5 {[%clk 0:00:03.5]} 34. Rd2 {[%clk 0:01:37.7]}
34... f6 {[%clk 0:00:03.8]} 35. Rd5 {[%clk 0:01:36.5]} 35... Ra8 {[%clk
0:00:03.2]} 36. Rd7 {[%clk 0:01:36.3]} 36... a4 {[%clk 0:00:02.1]} 37. Rg1
{[%clk 0:01:33.2]} 37... g5 {[%clk 0:00:01.4]} 38. h4 {[%clk 0:01:32.2]} 38...
g4 {[%clk 0:00:01.6]} 39. Rf1 {[%clk 0:01:24.4]} 39... axb3 {[%clk 0:00:01.7]}
40. axb3 {[%clk 0:01:25.1]} 40... Ra2 {[%clk 0:00:01.9]} 41. Rfd1 {[%clk
0:01:17]} 41... Rh2+ {[%clk 0:00:01.6]} 42. Kg1 {[%clk 0:01:17.6]} 1-0

[Event "*** Titled Tuesday Blitz"]
[Site "Chess.com"]
[Date "2020.04.21"]
[Round "9"]
[White "thedjoker98"]
[Black "ajdemipopushi"]
[Result "1-0"]
[WhiteElo "2493"]
[BlackElo "2369"]
[TimeControl "180+1"]
[EndTime "11:49:12 PDT"]
[Termination "thedjoker98 won on time"]

1. d4 {[%clk 0:02:52.2]} 1... Nf6 {[%clk 0:02:59.2]} 2. c4 {[%clk 0:02:52.2]}
2... c5 {[%clk 0:02:59.7]} 3. d5 {[%clk 0:02:51.8]} 3... b5 {[%clk 0:03:00]} 4.
cxb5 {[%clk 0:02:52.7]} 4... a6 {[%clk 0:03:00.5]} 5. bxa6 {[%clk 0:02:53.6]}
5... Bxa6 {[%clk 0:03:00.8]} 6. Nc3 {[%clk 0:02:53.5]} 6... g6 {[%clk
0:03:01.2]} 7. e4 {[%clk 0:02:53.7]} 7... Bxf1 {[%clk 0:03:01.2]} 8. Kxf1 {[%clk
0:02:54.6]} 8... d6 {[%clk 0:03:01.7]} 9. Nf3 {[%clk 0:02:52.8]} 9... Bg7 {[%clk
0:03:02.2]} 10. g3 {[%clk 0:02:53.7]} 10... O-O {[%clk 0:03:02.1]} 11. Kg2
{[%clk 0:02:54.6]} 11... Nbd7 {[%clk 0:03:02.3]} 12. a4 {[%clk 0:02:52.5]} 12...
Ng4 {[%clk 0:03:00.6]} 13. Qe2 {[%clk 0:02:52]} 13... Qa5 {[%clk 0:02:34.6]} 14.
Nd2 {[%clk 0:02:50.7]} 14... h5 {[%clk 0:02:22.2]} 15. h3 {[%clk 0:02:49.9]}
15... Ngf6 {[%clk 0:02:21.8]} 16. Nc4 {[%clk 0:02:49.9]} 16... Qa6 {[%clk
0:02:21.7]} 17. Nb5 {[%clk 0:02:48.7]} 17... Qb7 {[%clk 0:02:11]} 18. Bd2 {[%clk
0:02:44.9]} 18... Ne8 {[%clk 0:01:34.6]} 19. Bc3 {[%clk 0:02:44.3]} 19... Nc7
{[%clk 0:01:33.2]} 20. Nxc7 {[%clk 0:02:42.1]} 20... Qxc7 {[%clk 0:01:32.4]} 21.
Bxg7 {[%clk 0:02:35.4]} 21... Kxg7 {[%clk 0:01:31.9]} 22. Rhe1 {[%clk
0:02:36.3]} 22... f6 {[%clk 0:01:24.4]} 23. b3 {[%clk 0:02:29.2]} 23... Rfb8
{[%clk 0:01:23.2]} 24. Rab1 {[%clk 0:02:27.5]} 24... Rb4 {[%clk 0:01:22.7]} 25.
Qd3 {[%clk 0:02:23.7]} 25... Rab8 {[%clk 0:01:21.8]} 26. Re3 {[%clk 0:02:20.5]}
26... Nb6 {[%clk 0:01:14]} 27. Nxb6 {[%clk 0:02:14]} 27... Qxb6 {[%clk
0:01:13.8]} 28. Ra1 {[%clk 0:02:14.2]} 28... Qb7 {[%clk 0:00:56]} 29. a5 {[%clk
0:02:09]} 29... Rd4 {[%clk 0:00:50]} 30. Qc3 {[%clk 0:02:05.5]} 30... f5 {[%clk
0:00:46.1]} 31. Ra4 {[%clk 0:01:59.2]} 31... Qa7 {[%clk 0:00:21.3]} 32. Rd3
{[%clk 0:01:39.4]} 32... Kf7 {[%clk 0:00:15.5]} 33. Rdxd4 {[%clk 0:01:33.1]}
33... cxd4 {[%clk 0:00:15.7]} 34. Rxd4 {[%clk 0:01:34]} 34... Rxb3 {[%clk
0:00:14]} 35. Qxb3 {[%clk 0:01:25.3]} 35... Qxd4 {[%clk 0:00:13.1]} 36. exf5
{[%clk 0:01:26.2]} 36... gxf5 {[%clk 0:00:11.8]} 37. a6 {[%clk 0:01:26.4]} 37...
Qe4+ {[%clk 0:00:11.5]} 38. Qf3 {[%clk 0:01:26.2]} 38... Qb1 {[%clk 0:00:08.3]}
39. a7 {[%clk 0:01:11.3]} 39... Qb7 {[%clk 0:00:07.7]} 40. Qxf5+ {[%clk
0:01:11]} 40... Kg7 {[%clk 0:00:07.1]} 41. Qg5+ {[%clk 0:01:11.2]} 41... Kf8
{[%clk 0:00:05.4]} 42. Qh6+ {[%clk 0:01:11.1]} 42... Kf7 {[%clk 0:00:04.9]} 43.
Qxh5+ {[%clk 0:01:11.3]} 43... Kf6 {[%clk 0:00:05]} 44. Qh8+ {[%clk 0:01:09.7]}
1-0

[Event "*** Titled Tuesday Blitz"]
[Site "Chess.com"]
[Date "2020.04.21"]
[Round "9"]
[White "ChadBiryani"]
[Black "Natalya_Buksa"]
[Result "0-1"]
[WhiteElo "2366"]
[BlackElo "2484"]
[TimeControl "180+1"]
[EndTime "11:49:15 PDT"]
[Termination "Natalya_Buksa won on time"]

1. d4 {[%clk 0:02:59.1]} 1... d5 {[%clk 0:03:00]} 2. Bf4 {[%clk 0:02:53.2]} 2...
Nf6 {[%clk 0:02:59.5]} 3. Nc3 {[%clk 0:02:51.4]} 3... g6 {[%clk 0:02:59.5]} 4.
e3 {[%clk 0:02:46.7]} 4... c6 {[%clk 0:02:59.8]} 5. Be2 {[%clk 0:02:34.5]} 5...
Bg7 {[%clk 0:02:59.3]} 6. h4 {[%clk 0:02:33.1]} 6... h5 {[%clk 0:02:58]} 7. Nf3
{[%clk 0:02:27.8]} 7... Bg4 {[%clk 0:02:57.2]} 8. Qd2 {[%clk 0:02:24.3]} 8...
Nbd7 {[%clk 0:02:54.7]} 9. O-O-O {[%clk 0:02:23.8]} 9... Ne4 {[%clk 0:02:53.7]}
10. Nxe4 {[%clk 0:02:22.5]} 10... dxe4 {[%clk 0:02:54.6]} 11. Ng5 {[%clk
0:02:21.9]} 11... Bxe2 {[%clk 0:02:49.7]} 12. Qxe2 {[%clk 0:02:22.8]} 12... Nf6
{[%clk 0:02:50.2]} 13. Qc4 {[%clk 0:02:20.8]} 13... Qd5 {[%clk 0:02:50.1]} 14.
Qb4 {[%clk 0:02:14]} 14... b5 {[%clk 0:02:47.7]} 15. Kb1 {[%clk 0:02:03.5]}
15... a5 {[%clk 0:02:47.4]} 16. Qb3 {[%clk 0:02:03.7]} 16... O-O {[%clk
0:02:44.9]} 17. Rc1 {[%clk 0:01:59.1]} 17... Ng4 {[%clk 0:02:23.7]} 18. Nxe4
{[%clk 0:01:41.6]} 18... Qxe4 {[%clk 0:02:18.5]} 19. f3 {[%clk 0:01:41.8]} 19...
Qf5 {[%clk 0:02:17.6]} 20. fxg4 {[%clk 0:01:41.9]} 20... Qxg4 {[%clk 0:02:18.5]}
21. Qd3 {[%clk 0:01:25.8]} 21... Rfd8 {[%clk 0:02:14.5]} 22. Rh3 {[%clk
0:01:20.3]} 22... e5 {[%clk 0:02:13.8]} 23. Bg5 {[%clk 0:00:59.4]} 23... Qxg2
{[%clk 0:02:11.2]} 24. Rhh1 {[%clk 0:00:47.7]} 24... Rd7 {[%clk 0:02:07.6]} 25.
c3 {[%clk 0:00:28.1]} 25... b4 {[%clk 0:02:02.4]} 26. Rhg1 {[%clk 0:00:27.7]}
26... Qd5 {[%clk 0:01:58.6]} 27. c4 {[%clk 0:00:11.1]} 27... Qe6 {[%clk
0:01:58.6]} 28. d5 {[%clk 0:00:08.2]} 28... cxd5 {[%clk 0:01:57.9]} 29. Rgd1
{[%clk 0:00:08.3]} 29... d4 {[%clk 0:01:40.3]} 30. c5 {[%clk 0:00:06.9]} 30...
Rc7 {[%clk 0:01:35.4]} 31. e4 {[%clk 0:00:02.9]} 31... Rac8 {[%clk 0:01:35.1]}
32. Qb5 {[%clk 0:00:02.9]} 32... Qc6 {[%clk 0:01:31.6]} 33. Qd3 {[%clk 0:00:03]}
33... Bf8 {[%clk 0:01:26.9]} 34. Rc2 {[%clk 0:00:01.6]} 34... a4 {[%clk
0:01:24.6]} 35. b3 {[%clk 0:00:01.8]} 35... axb3 {[%clk 0:01:24.5]} 36. Qxb3
{[%clk 0:00:02.7]} 36... Qxe4 {[%clk 0:01:24.4]} 37. Rc1 {[%clk 0:00:03.4]}
37... Bg7 {[%clk 0:01:22.7]} 38. Ka1 {[%clk 0:00:01.1]} 38... d3 {[%clk
0:01:20.5]} 39. Rb2 {[%clk 0:00:01.6]} 39... Qf5 {[%clk 0:01:18.5]} 40. Rd1
{[%clk 0:00:01.7]} 40... e4 {[%clk 0:01:18.5]} 41. Kb1 {[%clk 0:00:02.1]} 41...
Rxc5 {[%clk 0:01:14.7]} 42. Rbd2 {[%clk 0:00:02.1]} 42... Rc2 {[%clk 0:01:10.3]}
43. Qa4 {[%clk 0:00:02.3]} 43... Qe5 {[%clk 0:01:06.5]} 0-1

[Event "*** Titled Tuesday Blitz"]
[Site "Chess.com"]
[Date "2020.04.21"]
[Round "9"]
[White "Azatnew"]
[Black "Carnivoras"]
[Result "1-0"]
[WhiteElo "2792"]
[BlackElo "2629"]
[TimeControl "180+1"]
[EndTime "11:49:19 PDT"]
[Termination "Azatnew won by checkmate"]

1. Nf3 {[%clk 0:02:57.6]} 1... d5 {[%clk 0:02:59.6]} 2. g3 {[%clk 0:02:58.1]}
2... Nf6 {[%clk 0:02:59.6]} 3. Bg2 {[%clk 0:02:58.5]} 3... Bf5 {[%clk
0:02:59.3]} 4. O-O {[%clk 0:02:58.9]} 4... e6 {[%clk 0:02:59.2]} 5. d4 {[%clk
0:02:59.5]} 5... Be7 {[%clk 0:02:58.7]} 6. c4 {[%clk 0:02:59.9]} 6... c6 {[%clk
0:02:58.8]} 7. Nc3 {[%clk 0:03:00.2]} 7... O-O {[%clk 0:02:58.7]} 8. Qb3 {[%clk
0:03:00.5]} 8... Qb6 {[%clk 0:02:58.4]} 9. c5 {[%clk 0:03:00.7]} 9... Qxb3
{[%clk 0:02:58.6]} 10. axb3 {[%clk 0:03:01.6]} 10... Nbd7 {[%clk 0:02:59]} 11.
b4 {[%clk 0:03:02.1]} 11... a6 {[%clk 0:02:59.6]} 12. Nd2 {[%clk 0:03:02.6]}
12... e5 {[%clk 0:02:59]} 13. dxe5 {[%clk 0:02:57.3]} 13... Nxe5 {[%clk
0:02:59.9]} 14. Nb3 {[%clk 0:02:57.8]} 14... Nc4 {[%clk 0:02:57.7]} 15. Nd4
{[%clk 0:02:56.4]} 15... Bg6 {[%clk 0:02:55.3]} 16. f4 {[%clk 0:02:54.5]} 16...
a5 {[%clk 0:02:46.4]} 17. bxa5 {[%clk 0:01:11.5]} 17... Bxc5 {[%clk 0:02:43.1]}
18. e3 {[%clk 0:01:12]} 18... Nxa5 {[%clk 0:02:35.5]} 19. f5 {[%clk 0:01:08.6]}
19... Bh5 {[%clk 0:02:33.5]} 20. h3 {[%clk 0:01:09]} 20... Nc4 {[%clk
0:02:13.2]} 21. Rxa8 {[%clk 0:01:08.9]} 21... Rxa8 {[%clk 0:02:12.8]} 22. b3
{[%clk 0:00:53.5]} 22... Ne5 {[%clk 0:02:00.8]} 23. Na4 {[%clk 0:00:51]} 23...
Bb4 {[%clk 0:01:43.6]} 24. g4 {[%clk 0:00:45.4]} 24... Nfxg4 {[%clk 0:01:40.8]}
25. hxg4 {[%clk 0:00:46.3]} 25... Bxg4 {[%clk 0:01:41.2]} 26. e4 {[%clk
0:00:28.9]} 26... c5 {[%clk 0:01:27.2]} 27. Nb5 {[%clk 0:00:26.1]} 27... d4
{[%clk 0:01:23.9]} 28. Bf4 {[%clk 0:00:25.1]} 28... f6 {[%clk 0:01:21.2]} 29.
Nb6 {[%clk 0:00:23.7]} 29... Ra6 {[%clk 0:01:15]} 30. Nc4 {[%clk 0:00:22.9]}
30... Nxc4 {[%clk 0:01:06.3]} 31. bxc4 {[%clk 0:00:23.8]} 31... Be2 {[%clk
0:01:06.1]} 32. Rb1 {[%clk 0:00:22.8]} 32... Bxc4 {[%clk 0:01:04.3]} 33. Nxd4
{[%clk 0:00:22.6]} 33... Bd3 {[%clk 0:01:00.3]} 34. Rb3 {[%clk 0:00:22.7]} 34...
cxd4 {[%clk 0:00:57.8]} 35. Rxb4 {[%clk 0:00:22.7]} 35... b5 {[%clk 0:00:41.7]}
36. Rxd4 {[%clk 0:00:22.5]} 36... Bc4 {[%clk 0:00:42.1]} 37. Rd8+ {[%clk
0:00:22.8]} 37... Kf7 {[%clk 0:00:41.9]} 38. Rb8 {[%clk 0:00:23.2]} 38... Ra7
{[%clk 0:00:40.7]} 39. Be3 {[%clk 0:00:22.6]} 39... Rd7 {[%clk 0:00:40.2]} 40.
Bc5 {[%clk 0:00:22.6]} 40... Rc7 {[%clk 0:00:40]} 41. Rf8# {[%clk 0:00:22.3]}
1-0

[Event "*** Titled Tuesday Blitz"]
[Site "Chess.com"]
[Date "2020.04.21"]
[Round "9"]
[White "littleozy"]
[Black "Enriquack"]
[Result "0-1"]
[WhiteElo "2382"]
[BlackElo "2268"]
[TimeControl "180+1"]
[EndTime "11:49:20 PDT"]
[Termination "Enriquack won on time"]

1. d4 {[%clk 0:03:00.9]} 1... Nf6 {[%clk 0:02:59.1]} 2. Nc3 {[%clk 0:03:01]}
2... d5 {[%clk 0:02:58.6]} 3. Bg5 {[%clk 0:03:00.6]} 3... Nbd7 {[%clk
0:02:54.3]} 4. f3 {[%clk 0:02:59.9]} 4... c5 {[%clk 0:02:49.2]} 5. dxc5 {[%clk
0:02:59.6]} 5... Qa5 {[%clk 0:02:44.5]} 6. Bxf6 {[%clk 0:02:44.4]} 6... Nxf6
{[%clk 0:02:42.4]} 7. Qd4 {[%clk 0:02:42]} 7... e5 {[%clk 0:02:18.9]} 8. Qxe5+
{[%clk 0:02:37.2]} 8... Be6 {[%clk 0:02:18.7]} 9. O-O-O {[%clk 0:02:23.3]} 9...
Bxc5 {[%clk 0:02:08.8]} 10. e4 {[%clk 0:02:23.2]} 10... O-O {[%clk 0:01:45.5]}
11. exd5 {[%clk 0:02:18.9]} 11... Nxd5 {[%clk 0:00:47.4]} 12. Nxd5 {[%clk
0:02:16.9]} 12... Qxa2 {[%clk 0:00:47.2]} 13. Nc3 {[%clk 0:01:17]} 13... Qa5
{[%clk 0:00:19.4]} 14. Bb5 {[%clk 0:00:58.5]} 14... Rad8 {[%clk 0:00:18.3]} 15.
Rxd8 {[%clk 0:00:44.5]} 15... Rxd8 {[%clk 0:00:17.9]} 16. Kb1 {[%clk 0:00:25.9]}
16... Bd4 {[%clk 0:00:16.5]} 17. Qg5 {[%clk 0:00:13.7]} 17... Bxc3 {[%clk
0:00:16.5]} 18. Qxd8+ {[%clk 0:00:08.3]} 18... Qxd8 {[%clk 0:00:17.4]} 19. bxc3
{[%clk 0:00:07.5]} 19... Qd1+ {[%clk 0:00:18]} 20. Kb2 {[%clk 0:00:07.3]} 20...
a6 {[%clk 0:00:18.2]} 21. Be2 {[%clk 0:00:05.5]} 21... Qe1 {[%clk 0:00:18.3]}
22. h4 {[%clk 0:00:04.5]} 22... b5 {[%clk 0:00:16.9]} 23. Bd3 {[%clk 0:00:03.8]}
23... Bc4 {[%clk 0:00:15.6]} 0-1

[Event "*** Titled Tuesday Blitz"]
[Site "Chess.com"]
[Date "2020.04.21"]
[Round "9"]
[White "GMartin_Petrov"]
[Black "Igor_Lysyj"]
[Result "1-0"]
[WhiteElo "2666"]
[BlackElo "2768"]
[TimeControl "180+1"]
[EndTime "11:49:22 PDT"]
[Termination "GMartin_Petrov won by resignation"]

1. e4 {[%clk 0:03:00.9]} 1... e5 {[%clk 0:02:59.4]} 2. Nf3 {[%clk 0:03:00.7]}
2... Nc6 {[%clk 0:02:59.7]} 3. Bc4 {[%clk 0:03:01.2]} 3... Bc5 {[%clk
0:02:58.8]} 4. c3 {[%clk 0:03:01.6]} 4... Nf6 {[%clk 0:02:57.9]} 5. d4 {[%clk
0:03:02.2]} 5... exd4 {[%clk 0:02:56.1]} 6. e5 {[%clk 0:03:02.9]} 6... d5 {[%clk
0:02:55]} 7. Bb5 {[%clk 0:03:03.5]} 7... Ne4 {[%clk 0:02:54.6]} 8. cxd4 {[%clk
0:03:04.1]} 8... Bb6 {[%clk 0:02:53.6]} 9. Nc3 {[%clk 0:03:04.3]} 9... O-O
{[%clk 0:02:51.5]} 10. Be3 {[%clk 0:03:04.8]} 10... Bg4 {[%clk 0:02:48.6]} 11.
h3 {[%clk 0:03:04.5]} 11... Bh5 {[%clk 0:02:48]} 12. O-O {[%clk 0:03:04.5]}
12... Nxc3 {[%clk 0:02:34.4]} 13. bxc3 {[%clk 0:03:03.3]} 13... f6 {[%clk
0:02:34.4]} 14. exf6 {[%clk 0:03:03.1]} 14... Qxf6 {[%clk 0:02:33.6]} 15. Be2
{[%clk 0:03:03.8]} 15... Rae8 {[%clk 0:02:31.2]} 16. Qd2 {[%clk 0:03:03.6]}
16... h6 {[%clk 0:02:30.2]} 17. Rae1 {[%clk 0:03:03.3]} 17... Bxf3 {[%clk
0:02:24]} 18. Bxf3 {[%clk 0:03:02.8]} 18... Ne7 {[%clk 0:02:24]} 19. Bf4 {[%clk
0:02:59.9]} 19... Qxf4 {[%clk 0:02:22.6]} 20. Qxf4 {[%clk 0:02:53]} 20... Rxf4
{[%clk 0:02:21.6]} 21. Bxd5+ {[%clk 0:02:53.7]} 21... Kf8 {[%clk 0:02:20.7]} 22.
Bxb7 {[%clk 0:02:53.5]} 22... Rd8 {[%clk 0:02:18.5]} 23. Re5 {[%clk 0:02:46.8]}
23... Ng6 {[%clk 0:02:13.5]} 24. Re6 {[%clk 0:02:44.8]} 24... Rf6 {[%clk
0:02:13.2]} 25. Re4 {[%clk 0:02:40.8]} 25... c5 {[%clk 0:02:10.9]} 26. d5 {[%clk
0:02:37.6]} 26... Re8 {[%clk 0:02:09.4]} 27. Rfe1 {[%clk 0:02:23.1]} 27... Rxe4
{[%clk 0:02:05.7]} 28. Rxe4 {[%clk 0:02:23.7]} 28... c4 {[%clk 0:02:06.1]} 29.
Rxc4 {[%clk 0:02:21.8]} 29... Bxf2+ {[%clk 0:01:59.9]} 30. Kh2 {[%clk
0:02:21.7]} 30... Bb6 {[%clk 0:01:58.1]} 31. Rc8+ {[%clk 0:02:19.7]} 31... Ke7
{[%clk 0:01:56.1]} 32. c4 {[%clk 0:02:19.8]} 32... Rf8 {[%clk 0:00:28.6]} 33.
Rc6 {[%clk 0:02:07.8]} 33... Nh4 {[%clk 0:00:19.8]} 34. c5 {[%clk 0:02:04.3]}
34... Ba5 {[%clk 0:00:20]} 35. Ra6 {[%clk 0:01:30.4]} 35... Bc3 {[%clk
0:00:19.1]} 36. Re6+ {[%clk 0:01:22.5]} 36... Kd7 {[%clk 0:00:18.5]} 37. Bc6+
{[%clk 0:01:20.3]} 37... Kc7 {[%clk 0:00:18.6]} 38. Re7+ {[%clk 0:01:20.1]}
38... Kd8 {[%clk 0:00:18.6]} 39. d6 {[%clk 0:01:16.4]} 39... Nf5 {[%clk
0:00:15.1]} 40. Rxa7 {[%clk 0:01:12.6]} 40... Be5+ {[%clk 0:00:14.4]} 41. Kg1
{[%clk 0:01:08]} 41... Bd4+ {[%clk 0:00:13.7]} 42. Kh2 {[%clk 0:01:03.3]} 42...
Be5+ {[%clk 0:00:13]} 43. g3 {[%clk 0:01:02.7]} 43... Nxd6 {[%clk 0:00:12.2]}
44. cxd6 {[%clk 0:01:01.8]} 44... Bxd6 {[%clk 0:00:12.1]} 45. Rd7+ {[%clk
0:01:01.6]} 1-0

[Event "*** Titled Tuesday Blitz"]
[Site "Chess.com"]
[Date "2020.04.21"]
[Round "9"]
[White "Mikhail_Biryukov"]
[Black "evgenyermolaev"]
[Result "0-1"]
[WhiteElo "2660"]
[BlackElo "2520"]
[TimeControl "180+1"]
[EndTime "11:49:24 PDT"]
[Termination "evgenyermolaev won by checkmate"]

1. e4 {[%clk 0:03:00.9]} 1... c5 {[%clk 0:02:59.6]} 2. Nf3 {[%clk 0:02:59.6]}
2... d6 {[%clk 0:02:59.6]} 3. Bb5+ {[%clk 0:02:58.5]} 3... Nd7 {[%clk
0:02:59.4]} 4. c4 {[%clk 0:02:56.4]} 4... a6 {[%clk 0:02:57.3]} 5. Bxd7+ {[%clk
0:02:56]} 5... Bxd7 {[%clk 0:02:57.2]} 6. d4 {[%clk 0:02:56.9]} 6... cxd4 {[%clk
0:02:53.5]} 7. Qxd4 {[%clk 0:02:57.8]} 7... e5 {[%clk 0:02:46.5]} 8. Qd2 {[%clk
0:02:56.6]} 8... b5 {[%clk 0:02:46]} 9. cxb5 {[%clk 0:02:56.4]} 9... axb5 {[%clk
0:02:46.3]} 10. O-O {[%clk 0:02:56]} 10... h6 {[%clk 0:02:45.1]} 11. Nc3 {[%clk
0:02:54.9]} 11... Nf6 {[%clk 0:02:44.6]} 12. Re1 {[%clk 0:02:53.8]} 12... Be7
{[%clk 0:02:43.1]} 13. b3 {[%clk 0:02:50.7]} 13... O-O {[%clk 0:02:36.4]} 14.
Bb2 {[%clk 0:02:50.6]} 14... Bc6 {[%clk 0:02:36.3]} 15. Qd3 {[%clk 0:02:48.1]}
15... Qd7 {[%clk 0:02:34.3]} 16. Nd2 {[%clk 0:02:46.1]} 16... Qb7 {[%clk
0:02:30.6]} 17. Nd1 {[%clk 0:02:34.3]} 17... Nh5 {[%clk 0:02:02.9]} 18. Qf3
{[%clk 0:02:16.7]} 18... Nf4 {[%clk 0:02:00.5]} 19. Qe3 {[%clk 0:01:50.3]} 19...
f5 {[%clk 0:01:33.3]} 20. g3 {[%clk 0:01:15.9]} 20... Nh3+ {[%clk 0:01:29.5]}
21. Kg2 {[%clk 0:01:15.6]} 21... Ng5 {[%clk 0:01:06.3]} 22. f3 {[%clk 0:01:15]}
22... Nxf3 {[%clk 0:00:49]} 23. Nxf3 {[%clk 0:01:03.4]} 23... Bxe4 {[%clk
0:00:49.1]} 24. Nf2 {[%clk 0:00:59.1]} 24... Bc6 {[%clk 0:00:46.5]} 25. Rac1
{[%clk 0:00:50.6]} 25... f4 {[%clk 0:00:42.6]} 26. gxf4 {[%clk 0:00:47.8]} 26...
Rxf4 {[%clk 0:00:42.2]} 27. Rxc6 {[%clk 0:00:47.4]} 27... Qxc6 {[%clk
0:00:43.1]} 28. Nd3 {[%clk 0:00:39.9]} 28... Rg4+ {[%clk 0:00:16.7]} 29. Kh3
{[%clk 0:00:36.5]} 29... Rg6 {[%clk 0:00:16.2]} 30. Nfxe5 {[%clk 0:00:16.4]}
30... Qg2# {[%clk 0:00:14.9]} 0-1